fUSD/lending_fUSD_20260128
["ID","MTS","AMOUNT","RATE_DAILY","PERIOD"]
[403852632,1769602231880,-300.0,0.00014226,2]
[403852635,1769602231890,-95.00000005,0.00014226,2]
[403852636,1769602231928,-1104.99999995,0.00014226,2]
[403852637,1769602231939,-26954.54387597,0.00014226,2]
[403852638,1769602231950,-190976.58395302,0.00014226,2]
[403852639,1769602231961,-10573.8624343,0.00014226,2]
[403852640,1769602231972,-63672.53484466,0.00014226,2]
[403852641,1769602231984,-92131.56379205,0.00014226,2]
[403852642,1769602231993,-195.0,0.00014226,2]
[403852643,1769602232003,-600.0,0.00014226,2]
[403852644,1769602232013,-250.0,0.00014227,2]
[403852645,1769602232022,-886.69078906,0.00014227,2]
[403852646,1769602232032,-10567.71171837,0.00014227,2]
[403852647,1769602232041,-4366.77435168,0.00014227,2]
[403852648,1769602232050,-600.0,0.00014236,2]
[403852649,1769602232060,-600.0,0.00014236,2]
[403852650,1769602232073,-182.74546326,0.00014238,2]
[403852651,1769602232083,-332.06153458,0.00014262,2]
[403852652,1769602232093,-164.13,0.00014302,2]
[403852654,1769602232103,-500.0,0.00014318,2]
[403852656,1769602232114,-500.0,0.00014318,2]
[403852658,1769602232124,-500.0,0.00014318,2]
[403852660,1769602232133,-500.0,0.00014318,2]
[403852662,1769602232144,-500.0,0.00014318,2]
[403852664,1769602232154,-500.0,0.00014318,2]
[403852666,1769602232163,-500.0,0.00014318,2]
[403852668,1769602232173,-500.0,0.00014318,2]
[403852670,1769602232182,-500.0,0.00014318,2]
[403852672,1769602232192,-490.791846,0.00014318,2]
[403852674,1769602232202,-150.0,0.00014318,2]
[403852675,1769602232211,-500.0,0.00014319,2]
[403852676,1769602232220,-500.0,0.00014319,2]
[403852677,1769602232230,-500.0,0.00014319,2]
[403852678,1769602232240,-500.0,0.00014319,2]
[403852679,1769602232249,-500.0,0.00014319,2]
[403852680,1769602232258,-500.0,0.00014319,2]
[403852681,1769602232268,-500.0,0.00014319,2]
[403852682,1769602232277,-500.0,0.00014319,2]
[403852683,1769602232287,-128.50009497,0.00014319,2]
[403852684,1769602232315,-371.49990503,0.00014319,2]
[403852685,1769602232325,-218.18164236,0.00014319,2]
[403852686,1769602232336,-281.81835764,0.00014319,2]
[403852687,1769602232346,-500.0,0.00014319,2]
[403852688,1769602232355,-151.0,0.00014319,2]
[403852689,1769602232365,-151.0,0.00014319,2]
[403852690,1769602232375,-305.10119178,0.00014326,2]
[403852691,1769602232386,-217.78513585,0.00014326,2]
[403852692,1769602232396,-500.0,0.00014326,2]
[403852693,1769602232405,-500.0,0.00014326,2]
[403852694,1769602232415,-500.0,0.00014326,2]
[403852695,1769602232424,-627.23984918,0.00014326,2]
[403852696,1769602232445,-2255.84924183,0.00014326,2]
[403852697,1769602232456,-999.0,0.00014326,2]
[403852701,1769602238083,-126.79490899,0.00014326,2]
[403852702,1769602238094,-284.511,0.00014326,2]
[403852703,1769602238104,-176.69409101,0.00014326,2]
[403852704,1769602238116,-224.80411274,0.00014326,2]
[403852705,1769602238127,-500.0,0.00014326,2]
[403852706,1769602238137,-500.0,0.00014326,2]
[403852707,1769602238147,-474.46799667,0.00014327,2]
[403852708,1769602238158,-150.0,0.00014331,2]
[403852709,1769602238171,-1000.0,0.00014338,2]
[403852710,1769602238183,-524.42153224,0.00014437,2]
[403852711,1769602238195,-500.0,0.00014437,2]
[403852712,1769602238205,-500.0,0.00014437,2]
[403852713,1769602238215,-500.0,0.00014437,2]
[403852714,1769602238225,-500.0,0.00014437,2]
[403852715,1769602238235,-500.0,0.00014437,2]
[403852716,1769602238246,-166.66,0.00014688,2]
[403852717,1769602238255,-166.66,0.00014998,2]
[403852718,1769602238265,-164.13,0.00015196,2]
[403852719,1769602238275,-166.66,0.00015307,2]
[403852720,1769602238286,-151.0,0.00015328,2]
[403852721,1769602238296,-151.0,0.00015328,2]
[403852722,1769602238306,-151.0,0.00015328,2]
[403852723,1769602238315,-151.49,0.00015328,2]
[403852724,1769602238326,-151.0,0.00015328,2]
[403852725,1769602238335,-151.0,0.00015328,2]
[403852726,1769602238346,-5284.0,0.00015359,2]
[403852728,1769602238356,-150.0034399,0.00015374,2]
[403852729,1769602238365,-255.0,0.00015434,2]
[403852731,1769602238375,-500.0,0.00015436,2]
[403852733,1769602238385,-500.0,0.00015436,2]
[403852736,1769602238395,-500.0,0.00015436,2]
[403852737,1769602238404,-500.0,0.00015436,2]
[403852739,1769602238414,-500.0,0.00015446,2]
[403852742,1769602238424,-500.0,0.00015446,2]
[403852744,1769602238433,-420.0,0.00015582,2]
[403852746,1769602238444,-166.66,0.00015616,2]
[403852747,1769602238454,-2500.0,0.00015649,2]
[403852750,1769602238464,-250.0,0.00015649,2]
[403852752,1769602238473,-195.0,0.00015649,2]
[403852754,1769602238483,-600.0,0.00015649,2]
[403852755,1769602238492,-1680.0,0.00015649,2]
[403852757,1769602238501,-334.5472959,0.00015834,2]
[403852759,1769602238511,-174.61919141,0.00015834,2]
[403852760,1769602238520,-854.2589148,0.00015834,2]
[403852762,1769602238530,-209.40437684,0.00015834,2]
[403852764,1769602238539,-1891.45,0.00015883,2]
[403852766,1769602238548,-217.15233878,0.00015889,2]
[403852768,1769602238557,-1891.45,0.00015908,2]
[403852770,1769602238566,-483.22,0.00015918,2]
[403852772,1769602238576,-166.66,0.00015925,2]
[403852774,1769602238585,-1891.45,0.00015933,2]
[403852776,1769602238595,-225.18697532,0.00015944,2]
[403852778,1769602238604,-1891.45,0.00015958,2]
[403852780,1769602238613,-1891.45,0.00015983,2]
[403852782,1769602238623,-233.51889341,0.00015999,2]
[403852784,1769602238632,-1891.45,0.00016008,2]
[403852786,1769602238640,-1891.45,0.00016034,2]
[403852788,1769602238650,-242.15909246,0.00016054,2]
[403852790,1769602238659,-308.52005022,0.00016059,2]
[403852792,1769602238670,-825.89185212,0.00016059,2]
[403852957,1769602240215,-757.03809766,0.00016059,2]
[403852959,1769602240226,-1891.45,0.00016084,2]
[403852962,1769602240236,-164.13,0.0001609,2]
[403852964,1769602240245,-251.11897888,0.00016109,2]
[403852966,1769602240255,-1891.45,0.00016109,2]
[403852968,1769602240265,-166.66,0.00016128,2]
[403852970,1769602240274,-1891.45,0.00016134,2]
[403852972,1769602240284,-1581.73469627,0.00016159,2]
[403852974,1769602240296,-309.71530373,0.00016159,2]
[403852976,1769602240306,-90.49454765,0.00016164,2]
[403852981,1769602240348,-169.91583345,0.00016164,2]
[403852983,1769602240357,-125.3619098,0.00016184,2]
[403852986,1769602240369,-1766.0880902,0.00016184,2]
[403852988,1769602240378,-1757.24782274,0.00016209,2]
[403852990,1769602240389,-134.20217726,0.00016209,2]
[403852992,1769602240398,-253.73642274,0.00016212,2]
[403853003,1769602240499,-1.56357726,0.00016212,2]
[403853005,1769602240508,-248.00542755,0.00016219,2]
[403853010,1769602240544,-22.04013765,0.00016219,2]
[403853012,1769602240554,-1891.45,0.00016234,2]
[403853015,1769602240563,-166.66,0.00016235,2]
[403853018,1769602240572,-1891.45,0.00016259,2]
[403853021,1769602240581,-280.03725112,0.00016274,2]
[403853023,1769602240590,-1891.45,0.00016284,2]
[403853025,1769602240599,-1891.45,0.00016309,2]
[403853027,1769602240608,-290.39862941,0.00016329,2]
[403853029,1769602240618,-1891.45,0.00016334,2]
[403853031,1769602240627,-1891.45,0.00016359,2]
[403853033,1769602240636,-500.0,0.00016373,2]
[403853035,1769602240645,-500.0,0.00016373,2]
[403853037,1769602240655,-500.0,0.00016373,2]
[403853039,1769602240664,-500.0,0.00016373,2]
[403853041,1769602240673,-251.57912426,0.00016382,2]
[403853043,1769602240683,-541.0243443,0.00016382,2]
[403853045,1769602240692,-301.1433787,0.00016384,2]
[403853047,1769602240701,-500.0,0.00016438,2]
[403853049,1769602240710,-500.0,0.00016438,2]
[403853051,1769602240720,-500.0,0.00016438,2]
[403853053,1769602240729,-500.0,0.00016438,2]
[403853055,1769602240738,-500.0,0.00016438,2]
[403853057,1769602240747,-500.0,0.00016438,2]
[403853059,1769602240756,-500.0,0.00016438,2]
[403853061,1769602240765,-500.0,0.00016438,2]
[403853063,1769602240774,-500.0,0.00016438,2]
[403853065,1769602240784,-302.57608877,0.00016438,2]
[403853067,1769602240793,-500.0,0.00016438,2]
[403853069,1769602240802,-500.0,0.00016438,2]
[403853071,1769602240812,-500.0,0.00016438,2]
[403853073,1769602240821,-500.0,0.00016438,2]
[403853075,1769602240831,-500.0,0.00016438,2]
[403853077,1769602240840,-500.0,0.00016438,2]
[403853079,1769602240849,-500.0,0.00016438,2]
[403853081,1769602240858,-500.0,0.00016438,2]
[403853083,1769602240867,-500.0,0.00016438,2]
[403853085,1769602240876,-500.0,0.00016438,2]
[403853087,1769602240886,-500.0,0.00016438,2]
[403853089,1769602240895,-500.0,0.00016438,2]
[403853090,1769602240904,-500.0,0.00016438,2]
[403853091,1769602240913,-500.0,0.00016438,2]
[403853092,1769602240923,-500.0,0.00016438,2]
[403853093,1769602240932,-500.0,0.00016438,2]
[403853094,1769602240942,-500.0,0.00016438,2]
[403853095,1769602240951,-500.0,0.00016438,2]
[403853096,1769602240961,-500.0,0.00016438,2]
[403853097,1769602240971,-500.0,0.00016438,2]
[403853098,1769602240980,-500.0,0.00016438,2]
[403853099,1769602240990,-500.0,0.00016438,2]
[403853100,1769602241000,-500.0,0.00016438,2]
[403853101,1769602241009,-500.0,0.00016438,2]
[403853102,1769602241019,-500.0,0.00016438,2]
[403853103,1769602241029,-500.0,0.00016438,2]
[403853104,1769602241038,-500.0,0.00016438,2]
[403853105,1769602241048,-500.0,0.00016438,2]
[403853148,1769602241443,-500.0,0.00016438,2]
[403853152,1769602241468,-500.0,0.00016438,2]
[403853154,1769602241478,-500.0,0.00016438,2]
[403853156,1769602241487,-500.0,0.00016438,2]
[403853158,1769602241497,-500.0,0.00016438,2]
[403853160,1769602241507,-500.0,0.00016438,2]
[403853162,1769602241516,-500.0,0.00016438,2]
[403853164,1769602241526,-500.0,0.00016438,2]
[403853166,1769602241535,-500.0,0.00016438,2]
[403853168,1769602241545,-500.0,0.00016438,2]
[403853170,1769602241554,-500.0,0.00016438,2]
[403853172,1769602241565,-500.0,0.00016438,2]
[403853174,1769602241574,-500.0,0.00016438,2]
[403853176,1769602241584,-500.0,0.00016438,2]
[403853179,1769602241593,-510.41514728,0.00016438,2]
[403853181,1769602241603,-500.0,0.00016438,2]
[403853183,1769602241612,-500.0,0.00016438,2]
[403853184,1769602241622,-500.0,0.00016438,2]
[403853187,1769602241632,-500.0,0.00016438,2]
[403853188,1769602241641,-500.0,0.00016438,2]
[403853190,1769602241653,-483.22,0.00016515,2]
[403853192,1769602241662,-433.0,0.00016637,2]
[403853194,1769602241672,-166.66,0.00016793,2]
[403853196,1769602241681,-1000.0,0.00016921,2]
[403853199,1769602241691,-1073.32,0.00016921,2]
[403853200,1769602241702,-1002.15317364,0.00016921,2]
[403853202,1769602241711,-1003.37162901,0.00016921,2]
[403853205,1769602241721,-164.13,0.00016984,2]
[403853206,1769602241730,-483.22,0.00017112,2]
[403853208,1769602241740,-200.0,0.00017137,2]
[403853210,1769602241749,-150.0,0.00017137,2]
[403853213,1769602241758,-150.0,0.00017137,2]
[403853215,1769602241771,-150.0,0.00017137,2]
[403853217,1769602241780,-200.0,0.00017192,2]
[403853219,1769602241789,-150.0,0.00017192,2]
[403853221,1769602241799,-720.0,0.00017213,2]
[403853223,1769602241808,-260.58682891,0.00017247,2]
[403853225,1769602241818,-886.69078901,0.00017435,2]
[403853227,1769602241829,-10567.71171829,0.00017435,2]
[403853229,1769602241839,-166.66,0.00017458,2]
[403853231,1769602241848,-500.0,0.00017468,2]
[403853233,1769602241857,-209.28929397,0.00017478,2]
[403853235,1769602241866,-250.78,0.000175,2]
[403853237,1769602241876,-1000.0,0.00017588,2]
[403853239,1769602241885,-483.22,0.00017709,2]
[403853241,1769602241895,-9999.99,0.00017728,2]
[403853242,1769602241905,-24455.22,0.00017728,2]
[403853244,1769602241914,-298.71,0.00017728,2]
[403853246,1769602241924,-7540.41,0.00017728,2]
[403853249,1769602241933,-342.37,0.00017728,2]
[403853251,1769602241945,-9999.99,0.00017728,2]
[403853253,1769602241954,-9999.99,0.00017728,2]
[403853255,1769602241963,-999.99,0.00017728,2]
[403853257,1769602241972,-1055.2,0.00017728,2]
[403853259,1769602241981,-150.99,0.00017728,2]
[403853261,1769602241991,-150.99,0.00017728,2]
[403853263,1769602242000,-250.0,0.00017741,2]
[403853265,1769602242009,-284.81898105,0.00017786,2]
[403853267,1769602242022,-1454.65971,0.0001782,2]
[403853269,1769602242031,-1454.65971,0.0001782,2]
[403853271,1769602242041,-481.0,0.00017832,2]
[403853273,1769602242051,-481.0,0.00017843,2]
[403853275,1769602242061,-200.0,0.00017855,2]
[403853277,1769602242070,-200.0,0.00017856,2]
[403853279,1769602242079,-164.13,0.00017877,2]
[403853281,1769602242093,-736.0,0.0001794,2]
[403853283,1769602242103,-481.0,0.00017974,2]
[403853285,1769602242112,-1256.4563052,0.00017987,2]
[403853288,1769602242122,-6712.207778,0.00017997,2]
[403853290,1769602242133,-286319.71978081,0.00018,2]
[403853292,1769602242142,-1191.25931111,0.00018,2]
[403853294,1769602242152,-151.0,0.00018,2]
[403853296,1769602242163,-151.0,0.00018,2]
[403853298,1769602242172,-1454.65971,0.00018,2]
[403853300,1769602242181,-1454.65971,0.00018,2]
[403853302,1769602242190,-1454.65972,0.00018,2]
[403853304,1769602242200,-1454.65971,0.00018,2]
[403853306,1769602242209,-502.0,0.00018,2]
[403853308,1769602242218,-3203.0,0.00018016,2]
[403853310,1769602242227,-3203.0,0.00018025,2]
[403853312,1769602242236,-3203.0,0.0001807,2]
[403853314,1769602242246,-3203.0,0.00018091,2]
[403853316,1769602242255,-481.0,0.00018096,2]
[403853318,1769602242264,-3203.0,0.00018098,2]
[403853320,1769602242274,-166.66,0.00018124,2]
[403853322,1769602242284,-150.0034399,0.00018185,3]
[403853324,1769602242294,-481.0,0.00018274,2]
[403853326,1769602242303,-483.22,0.00018306,2]
[403853328,1769602242314,-4366.77435165,0.00018353,2]
[403853330,1769602242325,-166.66,0.00018366,2]
[403853332,1769602242336,-481.0,0.000184,2]
[403853334,1769602242346,-158.63104359,0.0001841,2]
[403853336,1769602242356,-481.0,0.00018537,2]
[403853338,1769602242366,-481.0,0.00018566,2]
[403853341,1769602242376,-30861.8699033,0.00018685,2]
[403853343,1769602242386,-325.25,0.00018712,2]
[403853345,1769602242395,-164.13,0.00018771,2]
[403853347,1769602242404,-166.66,0.00018789,2]
[403853349,1769602242415,-481.0,0.00018863,2]
[403853350,1769602242425,-174.02655142,0.00018902,2]
[403853353,1769602242434,-566.81664929,0.00019,2]
[403853355,1769602242445,-75064.49417613,0.00019,2]
[403853357,1769602242458,-481.0,0.00019002,2]
[403853359,1769602242468,-1000.0,0.00019076,2]
[403853361,1769602242477,-481.0,0.00019107,2]
[403853363,1769602242486,-481.0,0.00019108,2]
[403853365,1769602242495,-151.0,0.00019121,2]
[403853367,1769602242504,-481.0,0.00019136,2]
[403853369,1769602242513,-481.0,0.00019154,2]
[403853371,1769602242522,-481.0,0.00019166,2]
[403853373,1769602242531,-155.0,0.00019177,2]
[403853375,1769602242541,-272.03,0.00019201,2]
[403853377,1769602242550,-481.0,0.00019202,2]
[403853379,1769602242559,-481.0,0.00019203,2]
[403853381,1769602242569,-297.37,0.00019218,2]
[403853383,1769602242578,-153.15,0.00019235,2]
[403853385,1769602242587,-481.0,0.0001924,2]
[403853387,1769602242596,-579.0,0.00019329,2]
[403853389,1769602242605,-205.44,0.000194,2]
[403853391,1769602242613,-6886.213974,0.00019414,2]
[403853393,1769602242623,-481.0,0.00019527,2]
[403853395,1769602242632,-695.11,0.00019569,2]
[403853397,1769602242641,-150.0034399,0.00019591,7]
[403853399,1769602242649,-164.13,0.00019665,2]
[403853401,1769602242658,-481.0,0.00019669,2]
[403853403,1769602242668,-2000.0,0.000197,2]
[403853405,1769602242678,-200.0,0.0002,2]
[403853407,1769602242687,-164.54954187,0.0002,2]
[403853410,1769602242698,-500.0,0.0002,2]
[403853413,1769602242707,-387.0,0.00020457,2]
[403853416,1769602242716,-387.0,0.00020522,2]
[403853419,1769602242725,-164.13,0.00020559,2]
[403853421,1769602242735,-886.69078901,0.00020643,2]
[403853423,1769602242744,-10567.71171829,0.00020643,2]
[403853425,1769602242753,-387.0,0.00020679,2]
[403853427,1769602242762,-387.0,0.00020685,2]
[403853429,1769602242772,-150.0,0.00020698,2]
[403853431,1769602242781,-387.0,0.0002071,2]
[403853433,1769602242791,-792.72,0.00020714,2]
[403853435,1769602242800,-150.0,0.00020721,2]
[403853437,1769602242809,-387.0,0.00020732,2]
[403853439,1769602242818,-1000.0,0.00020735,2]
[403853441,1769602242828,-1000.0,0.00020736,2]
[403853443,1769602242838,-1000.0,0.00020737,2]
[403853445,1769602242847,-1000.0,0.0002074,2]
[403853447,1769602242857,-1000.0,0.00020742,2]
[403853449,1769602242866,-1000.0,0.00020743,2]
[403853451,1769602242875,-1000.0,0.00020743,2]
[403853453,1769602242885,-387.0,0.00020747,2]
[403853455,1769602242894,-1000.0,0.00020747,2]
[403853458,1769602242904,-1000.0,0.00020753,2]
[403853460,1769602242913,-1000.0,0.00020757,2]
[403853461,1769602242923,-1000.0,0.00020758,2]
[403853463,1769602242932,-1000.0,0.00020761,2]
[403853465,1769602242944,-1000.0,0.00020763,2]
[403853468,1769602242954,-1000.0,0.00020763,2]
[403853470,1769602242963,-150.0,0.0002077,2]
[403853473,1769602242972,-150.0,0.00020771,2]
[403853475,1769602242982,-1000.0,0.00020775,2]
[403853478,1769602242991,-1000.0,0.00020778,2]
[403853482,1769602243000,-1000.0,0.00020781,2]
[403853484,1769602243009,-281.98695942,0.00020784,2]
[403853488,1769602243018,-1000.0,0.00020786,2]
[403853492,1769602243028,-150.0,0.00020788,2]
[403853495,1769602243037,-1000.0,0.00020798,2]
[403853498,1769602243047,-1000.0,0.00020807,2]
[403853500,1769602243055,-1000.0,0.0002081,2]
[403853502,1769602243064,-1000.0,0.00020811,2]
[403853504,1769602243073,-400.0,0.00020818,2]
[403853506,1769602243082,-1000.0,0.00020822,2]
[403853508,1769602243091,-1000.0,0.00020824,2]
[403853510,1769602243104,-1000.0,0.00020831,2]
[403853512,1769602243112,-1000.0,0.00020835,2]
[403853514,1769602243121,-1000.0,0.00020836,2]
[403853516,1769602243131,-1000.0,0.00020837,2]
[403853518,1769602243141,-1000.0,0.00020838,2]
[403853519,1769602243150,-1000.0,0.00020845,2]
[403853522,1769602243159,-150.0,0.00020846,2]
[403853524,1769602243170,-1000.0,0.00020849,2]
[403853526,1769602243179,-1000.0,0.00020849,2]
[403853528,1769602243189,-1000.0,0.00020851,2]
[403853530,1769602243199,-1000.0,0.00020851,2]
[403853532,1769602243208,-1000.0,0.00020851,2]
[403853533,1769602243217,-1000.0,0.00020853,2]
[403853535,1769602243227,-1000.0,0.00020857,2]
[403853538,1769602243236,-1000.0,0.0002086,2]
[403853540,1769602243246,-1000.0,0.00020861,2]
[403853542,1769602243256,-746.56327826,0.00020861,2]
[403853544,1769602243265,-150.0,0.00020868,2]
[403853545,1769602243274,-150.0,0.00020871,2]
[403853548,1769602243283,-1000.0,0.00020874,2]
[403853550,1769602243297,-1000.0,0.00020884,2]
[403853552,1769602243306,-150.0,0.00020887,2]
[403853554,1769602243315,-1000.0,0.00020888,2]
[403853556,1769602243325,-150.0,0.00020895,2]
[403853558,1769602243334,-1000.0,0.00020896,2]
[403853560,1769602243343,-1000.0,0.00020897,2]
[403853562,1769602243353,-150.0,0.00020898,2]
[403853564,1769602243363,-150.0,0.00020899,2]
[403853566,1769602243372,-1000.0,0.000209,7]
[403853568,1769602243382,-150.0,0.00020912,2]
[403853570,1769602243391,-1000.0,0.00020912,2]
[403853572,1769602243400,-1000.0,0.00020913,2]
[403853574,1769602243409,-1000.0,0.00020915,2]
[403853576,1769602243418,-1000.0,0.00020918,2]
[403853578,1769602243427,-1000.0,0.00020924,2]
[403853580,1769602243437,-1000.0,0.00020926,2]
[403853583,1769602243447,-1000.0,0.00020928,2]
[403853585,1769602243456,-1000.0,0.00020937,2]
[403853587,1769602243465,-1000.0,0.00020937,2]
[403853589,1769602243474,-1000.0,0.00020943,2]
[403853591,1769602243484,-150.0,0.00020945,2]
[403853593,1769602243493,-1000.0,0.00020945,2]
[403853595,1769602243502,-1000.0,0.00020945,2]
[403853597,1769602243511,-200.17585614,0.00020951,2]
[403853599,1769602243520,-1000.0,0.00020954,2]
[403853601,1769602243529,-1000.0,0.00020955,2]
[403853603,1769602243538,-150.0,0.00020959,2]
[403853605,1769602243548,-1000.0,0.00020959,2]
[403853607,1769602243557,-1000.0,0.00020961,2]
[403853609,1769602243567,-150.0,0.00020967,2]
[403853611,1769602243576,-1000.0,0.00020968,2]
[403853613,1769602243586,-150.0,0.00020969,2]
[403853615,1769602243595,-1000.0,0.00020971,2]
[403853617,1769602243605,-1000.0,0.00020975,2]
[403853619,1769602243615,-1000.0,0.00020976,2]
[403853621,1769602243627,-1000.0,0.00020987,2]
[403853623,1769602243637,-1000.0,0.00020988,2]
[403853625,1769602243647,-1000.0,0.0002099,2]
[403853627,1769602243657,-1000.0,0.00020995,2]
[403853629,1769602243667,-150.0034399,0.00020996,12]
[403853631,1769602243677,-20000.0,0.00021,2]
[403853633,1769602243687,-806.93450251,0.00021,2]
[403853635,1769602243697,-1193.76869682,0.00021,2]
[403853637,1769602243706,-197.04144914,0.00021,2]
[403853640,1769602243717,-231.53,0.00021,7]
[403853642,1769602243727,-152.0,0.00021,2]
[403853644,1769602243737,-158.0,0.00021,2]
[403853646,1769602243746,-152.0,0.00021,2]
[403853648,1769602243755,-151.0,0.00021,2]
[403853650,1769602243765,-152.0,0.00021,2]
[403853652,1769602243774,-151.0,0.00021,2]
[403853654,1769602243784,-152.0,0.00021,2]
[403853656,1769602243793,-151.0,0.00021,2]
[403853658,1769602243802,-151.0,0.00021,2]
[403853660,1769602243812,-152.0,0.00021,2]
[403853662,1769602243821,-151.0,0.00021,2]
[403853664,1769602243832,-152.0,0.00021,2]
[403853666,1769602243842,-151.0,0.00021,2]
[403853668,1769602243852,-151.0,0.00021,2]
[403853670,1769602243862,-152.0,0.00021,2]
[403853672,1769602243872,-151.0,0.00021,2]
[403853674,1769602243882,-151.0,0.00021,2]
[403853676,1769602243892,-152.0,0.00021,2]
[403853678,1769602243902,-151.0,0.00021,2]
[403853680,1769602243912,-151.0,0.00021,2]
[403853682,1769602243922,-152.0,0.00021,2]
[403853684,1769602243931,-151.0,0.00021,2]
[403853686,1769602243942,-152.0,0.00021,2]
[403853688,1769602243952,-151.0,0.00021,2]
[403853690,1769602243962,-151.0,0.00021,2]
[403853692,1769602243971,-152.0,0.00021,2]
[403853694,1769602243982,-151.0,0.00021,2]
[403853696,1769602243992,-151.0,0.00021,2]
[403853698,1769602244002,-152.0,0.00021,2]
[403853700,1769602244011,-151.0,0.00021,2]
[403853702,1769602244021,-151.0,0.00021,2]
[403853704,1769602244032,-152.0,0.00021,2]
[403853706,1769602244042,-151.0,0.00021,2]
[403853708,1769602244052,-151.0,0.00021,2]
[403853710,1769602244062,-152.0,0.00021,2]
[403853712,1769602244071,-151.0,0.00021,2]
[403853714,1769602244081,-152.0,0.00021,2]
[403853717,1769602244094,-152.0,0.00021,2]
[403853719,1769602244104,-151.0,0.00021,2]
[403853720,1769602244115,-151.0,0.00021,2]
[403853721,1769602244124,-151.0,0.00021,2]
[403853722,1769602244134,-151.0,0.00021,2]
[403853723,1769602244144,-151.0,0.00021,2]
[403853724,1769602244154,-151.0,0.00021,2]
[403853725,1769602244165,-151.0,0.00021,2]
[403853726,1769602244175,-152.50126102,0.00021,2]
[403853727,1769602244184,-166.0,0.00021,2]
[403853728,1769602244193,-170.47665606,0.00021,2]
[403853729,1769602244204,-12520.94,0.00021068,2]
[403853730,1769602244214,-155.0,0.00021095,2]
[403853731,1769602244223,-151.0,0.00021115,2]
[403853733,1769602244233,-695.11,0.00021348,2]
[403853735,1769602244243,-6380.31,0.0002137,2]
[403853737,1769602244252,-164.13,0.00021453,2]
[403853739,1769602244262,-57567.23947044,0.000215,2]
[403853741,1769602244272,-222.2638941,0.000215,2]
[403853743,1769602244281,-5000.0,0.00021918,2]
[403853745,1769602244291,-155.0,0.00021918,2]
[403853747,1769602244301,-155.0,0.00021918,2]
[403853749,1769602244310,-155.0,0.00021918,2]
[403853751,1769602244320,-155.0,0.00021918,2]
[403853753,1769602244330,-165.0,0.00021918,2]
[403853755,1769602244340,-155.0,0.00021918,2]
[403853757,1769602244350,-165.0,0.00021918,2]
[403853760,1769602244360,-155.0,0.00021918,2]
[403853762,1769602244369,-165.0,0.00021918,2]
[403853765,1769602244390,-155.0,0.00021918,2]
[403853767,1769602244399,-165.0,0.00021918,2]
[403853769,1769602244410,-165.0,0.00021918,2]
[403853771,1769602244419,-155.0,0.00021918,2]
[403853773,1769602244428,-165.0,0.00021918,2]
[403853776,1769602244438,-155.0,0.00021918,2]
[403853778,1769602244448,-155.0,0.00021918,2]
[403853780,1769602244457,-155.0,0.00021918,2]
[403853782,1769602244467,-155.0,0.00021918,2]
[403853784,1769602244477,-155.0,0.00021918,2]
[403853786,1769602244486,-155.0,0.00021918,2]
[403853788,1769602244496,-155.0,0.00021918,2]